fUSD/lending_fUSD_20240920
["ID","MTS","AMOUNT","RATE_DAILY","PERIOD"]
[338621332,1726805147965,408.14766568,0.00022999,120]
[338621333,1726805149301,501.29374664,0.00022999,120]
[338621334,1726805150458,503.28985895,0.00022999,120]
[338621335,1726805151187,500.48870749,0.00022999,120]
[338621336,1726805152404,500.0,0.00022999,120]
[338621337,1726805152688,210.12296067,0.00022999,120]
[338621338,1726805153464,500.61846227,0.00022999,120]
[338621339,1726805154679,500.0,0.00022999,120]
[338621340,1726805155146,432.75563869,0.00022999,120]
[338621341,1726805155400,500.0,0.00022999,120]
[338621342,1726805155668,500.0,0.00022999,120]
[338621343,1726805155930,254.04613489,0.00022999,120]
[338621344,1726805157568,500.93221745,0.00022999,120]
[338621345,1726805158348,503.28951406,0.00022999,120]
[338621346,1726805161454,500.0,0.00022999,120]
[338621347,1726805161716,426.64935858,0.00022999,120]
[338621348,1726805161929,499.38662853,0.00022999,120]
[338621349,1726805162294,502.36963408,0.00022999,120]
[338621350,1726805162580,500.0,0.00022999,120]
[338621351,1726805163016,500.0,0.00022999,120]
[338621352,1726805163351,422.47234021,0.00022999,120]
[338621353,1726805164532,501.3374234,0.00022999,120]
[338621354,1726805165396,500.0,0.00022999,120]
[338621355,1726805165669,537.09313253,0.00022999,120]
[338621356,1726805166996,500.84475195,0.00022999,120]
[338621357,1726805167302,622.18391911,0.00022999,120]
[338621358,1726805167854,500.0,0.00022999,120]
[338621359,1726805168108,224.00983857,0.00022999,120]
[338621360,1726805168903,500.0,0.00022999,120]
[338621361,1726805169047,500.4867609,0.00022999,120]
[338621362,1726805169185,352.37485367,0.00022999,120]
[338621363,1726805170999,500.0,0.00022999,120]
[338621364,1726805171103,500.84176697,0.00022999,120]
[338621365,1726805171254,500.0,0.00022999,120]
[338621366,1726805171531,357.27705811,0.00022999,120]
[338621367,1726805171902,501.67586298,0.00022999,120]
[338621368,1726805173303,500.50072469,0.00022999,120]
[338621369,1726805173891,500.0,0.00022999,120]
[338621370,1726805174192,500.0,0.00022999,120]
[338621371,1726805174482,250.78656651,0.00022999,120]
[338621372,1726805177510,500.48989094,0.00022999,120]
[338621373,1726805179107,501.08037483,0.00022999,120]
[338621374,1726805179917,500.56556109,0.00022999,120]
[338621375,1726805189288,500.66190235,0.00022999,120]
[338621376,1726805190435,506.93393568,0.00022999,120]
[338621377,1726805193053,500.0,0.00022999,120]
[338621378,1726805193167,500.0,0.00022999,120]
[338621379,1726805193377,157.49,0.00011887,2]
[338621380,1726805193442,266.3525544,0.00022999,120]
[338621381,1726805195084,500.93547008,0.00022999,120]
[338621382,1726805195613,501.25541042,0.00022999,120]
[338621383,1726805198252,500.0,0.00022999,120]
[338621384,1726805200509,500.59192826,0.00022999,120]
[338621385,1726805203292,328.0,0.00011887,2]
[338621386,1726805204057,501.35502336,0.00022999,120]
[338621387,1726805206076,500.0,0.00022999,120]
[338621388,1726805206116,500.0,0.00022999,120]
[338621389,1726805206352,500.0,0.00022999,120]
[338621390,1726805206460,167.27,0.00012445,2]
[338621391,1726805206631,496.26981753,0.00022999,120]
[338621392,1726805207176,501.55408528,0.00022999,120]
[338621393,1726805208389,500.0,0.00022999,120]
[338621394,1726805208494,501.37390729,0.00022999,120]
[338621395,1726805209412,502.13272719,0.00022999,120]
[338621396,1726805210439,500.39419584,0.00022999,120]
[338621397,1726805211017,500.56595398,0.00022999,120]
[338621398,1726805214043,503.92346859,0.00022999,120]
[338621399,1726805215396,504.09512887,0.00022999,120]
[338621400,1726805217459,504.09647059,0.00022999,120]
[338621401,1726805220407,513.76424025,0.00022999,120]
[338621402,1726805220672,500.0,0.00022999,120]
[338621403,1726805222690,310.87782409,0.00022999,120]
[338621404,1726805222843,500.0,0.00022999,120]
[338621405,1726805223655,500.0,0.00022999,120]
[338621406,1726805223799,500.0,0.00022999,120]
[338621407,1726805224065,500.0,0.00022999,120]
[338621408,1726805224364,500.0,0.00022999,120]
[338621409,1726805224576,500.0,0.00022999,120]
[338621410,1726805224648,415.90844724,0.00022999,120]
[338621411,1726805224785,507.31884486,0.00022999,120]
[338621412,1726805228643,500.0,0.00022999,120]
[338621413,1726805228895,393.07217835,0.00022999,120]
[338621414,1726805231077,500.0,0.00022999,120]
[338621415,1726805231359,294.61214315,0.00022999,120]
[338621416,1726805232881,500.44649266,0.00022999,120]
[338621417,1726805233393,629.50918694,0.00022999,120]
[338621418,1726805233485,500.65746212,0.00022999,120]
[338621419,1726805235393,500.0,0.00022999,120]
[338621420,1726805235430,500.7954889,0.00022999,120]
[338621421,1726805235687,501.38107005,0.00022999,120]
[338621422,1726805235812,278.09167944,0.00022999,120]
[338621428,1726805246383,500.0,0.00022999,120]
[338621429,1726805246641,500.0,0.00022999,120]
[338621431,1726805246923,604.41403635,0.00022999,120]
[338621432,1726805246960,500.98662428,0.00022999,120]
[338621434,1726805247341,500.81638259,0.00022999,120]
[338621435,1726805248165,500.0,0.00022999,120]
[338621436,1726805249147,520.46136031,0.00022999,120]
[338621437,1726805250762,501.00071805,0.00022999,120]
[338621438,1726805252614,500.79862245,0.00022999,120]
[338621443,1726805254742,510.0,0.00022876,120]
[338621444,1726805254884,501.01513546,0.00022999,120]
[338621456,1726805257049,500.0,0.00022999,120]
[338621457,1726805257336,500.0,0.00022999,120]
[338621459,1726805257596,500.0,0.00022999,120]
[338621462,1726805257847,500.0,0.00022999,120]
[338621464,1726805258101,500.0,0.00022999,120]
[338621465,1726805258379,519.84753224,0.00022999,120]
[338621473,1726805261131,501.00698715,0.00022999,120]
[338621474,1726805262631,501.0280111,0.00022999,120]
[338621475,1726805267174,501.29394773,0.00022999,120]
[338621476,1726805270474,500.0,0.00022999,120]
[338621477,1726805270726,499.19206324,0.00022999,120]
[338621478,1726805275318,500.61883884,0.00022999,120]
[338621479,1726805278443,501.20717053,0.00022999,120]
[338621480,1726805280663,500.0,0.00022999,120]
[338621481,1726805280933,206.70557599,0.00022999,120]
[338621482,1726805286269,500.0,0.00022999,120]
[338621483,1726805286540,500.0,0.00022999,120]
[338621484,1726805286797,274.38455695,0.00022999,120]
[338621486,1726805297277,250.0,0.00011888,2]
[338621487,1726805298663,500.63704441,0.00022999,120]
[338621488,1726805301365,500.0,0.00022999,120]
[338621489,1726805301641,469.1870009,0.00022999,120]
[338621490,1726805304043,500.0,0.00022999,120]
[338621491,1726805304419,539.77138828,0.00022999,120]
[338621492,1726805311327,500.0,0.00022999,120]
[338621493,1726805311506,500.0,0.00022999,120]
[338621494,1726805311594,500.0,0.00022999,120]
[338621495,1726805311861,500.0,0.00022999,120]
[338621496,1726805311905,500.0,0.00022999,120]
[338621497,1726805312116,500.0,0.00022999,120]
[338621498,1726805312173,331.51278207,0.00022999,120]
[338621499,1726805312468,303.52934756,0.00022999,120]
[338621500,1726805314423,501.28587114,0.00022999,120]
[338621501,1726805316680,596.26854153,0.00022999,120]
[338621502,1726805318704,500.0,0.00022999,120]
[338621503,1726805319052,501.03617549,0.00022999,120]
[338621504,1726805319286,500.0,0.00022999,120]
[338621505,1726805319556,348.96288801,0.00022999,120]
[338621506,1726805323169,500.0,0.00022999,120]
[338621507,1726805323443,500.0,0.00022999,120]
[338621508,1726805323726,500.0,0.00022999,120]
[338621509,1726805324241,500.0,0.00022999,120]
[338621510,1726805324311,485.91632067,0.00022999,120]
[338621511,1726805324658,501.40273669,0.00022999,120]
[338621512,1726805326807,501.03238292,0.00022999,120]
[338621513,1726805328689,500.0,0.00022999,120]
[338621514,1726805328949,485.2880309,0.00022999,120]
[338621515,1726805331790,601.85321548,0.00022999,120]
[338621516,1726805333290,500.0,0.00022999,120]
[338621517,1726805333570,500.0,0.00022999,120]
[338621518,1726805333818,500.0,0.00022999,120]
[338621519,1726805333946,496.95737841,0.00022999,120]
[338621520,1726805334064,500.0,0.00022999,120]
[338621521,1726805334326,500.0,0.00022999,120]
[338621522,1726805334650,500.0,0.00022999,120]
[338621523,1726805334916,500.0,0.00022999,120]
[338621524,1726805335182,500.0,0.00022999,120]
[338621525,1726805335452,500.0,0.00022999,120]
[338621526,1726805335731,500.0,0.00022999,120]
[338621527,1726805336111,500.0,0.00022999,120]
[338621528,1726805336396,636.3694798,0.00022999,120]
[338621529,1726805339580,500.0,0.00022999,120]
[338621530,1726805339843,623.95107486,0.00022999,120]
[338621531,1726805340362,500.6830987,0.00022999,120]
[338621532,1726805344273,500.0,0.00022999,120]
[338621533,1726805344546,359.37624602,0.00022999,120]
[338621534,1726805346728,501.0420603,0.00022999,120]
[338621535,1726805350506,521.28443554,0.00022999,120]
[338621536,1726805352787,500.0,0.00022999,120]
[338621537,1726805353056,178.21705015,0.00022999,120]
[338621538,1726805355541,500.0,0.00022999,120]
[338621539,1726805355833,500.0,0.00022999,120]
[338621540,1726805356140,500.0,0.00022999,120]
[338621541,1726805356482,183.77109941,0.00022999,120]
[338621542,1726805358939,500.0,0.00022999,120]
[338621543,1726805359195,500.0,0.00022999,120]
[338621544,1726805359462,500.0,0.00022999,120]
[338621545,1726805359734,392.42327298,0.00022999,120]
[338621546,1726805361063,152.6,9.97e-05,2]
[338621547,1726805361310,152.6,0.00012234,2]
[338621548,1726805361944,630.69578915,0.00022999,120]
[338621549,1726805364048,500.0,0.00022999,120]
[338621550,1726805364301,360.72934968,0.00022999,120]
[338621551,1726805366412,500.82485632,0.00022999,120]
[338621553,1726805373792,500.0,0.00022999,120]
[338621554,1726805374162,617.05577513,0.00022999,120]
[338621555,1726805386358,500.0,0.00022999,120]
[338621556,1726805386631,500.0,0.00022999,120]
[338621557,1726805386932,500.0,0.00022999,120]
[338621558,1726805387196,500.0,0.00022999,120]
[338621559,1726805387468,557.61949429,0.00022999,120]
[338621560,1726805397018,547.43643868,0.00022999,120]
[338621561,1726805400946,500.0,0.00022999,120]
[338621562,1726805401217,500.0,0.00022999,120]
[338621563,1726805401509,424.88708524,0.00022999,120]
[338621564,1726805419543,166.86,0.00011888,2]
[338621571,1726805431974,-371.6925449,0.0001275,2]
[338621572,1726805431986,-128.3074551,0.0001275,2]
[338621573,1726805431995,-2002.72694502,0.00012758,2]
[338621574,1726805432007,-393.9067626,0.00012758,2]
[338621575,1726805432029,-876.64939536,0.00012758,2]
[338621576,1726805432041,-7410.71689702,0.00012758,2]
[338621577,1726805432050,-500.0,0.00012759,2]
[338621578,1726805432060,-500.0,0.00012768,2]
[338621579,1726805432070,-150.0,0.00012768,2]
[338621580,1726805432079,-1549.0,0.00012769,2]
[338621581,1726805432089,-1262.0,0.00012769,2]
[338621582,1726805432099,-448.0,0.00012769,2]
[338621583,1726805432109,-625.0,0.00012769,2]
[338621584,1726805432119,-150.0,0.00012769,2]
[338621585,1726805432129,-809.0,0.00012769,2]
[338621586,1726805432139,-386.87791477,0.00012769,2]
[338621587,1726805432150,-171.12208523,0.00012769,2]
[338621588,1726805432159,-80.28001385,0.00012769,2]
[338621589,1726805432171,-851.71998615,0.00012769,2]
[338621590,1726805432181,-148.78001745,0.00012769,2]
[338621591,1726805432195,-1754.21998255,0.00012769,2]
[338621592,1726805432205,-553.0,0.00012769,2]
[338621593,1726805432215,-636.85581897,0.00012769,2]
[338621594,1726805432227,-1277.14418103,0.00012769,2]
[338621595,1726805432236,-806.0,0.00012769,2]
[338621596,1726805432246,-248.0,0.00012769,2]
[338621597,1726805432257,-3346.0,0.00012769,2]
[338621598,1726805432266,-500.0,0.00012777,2]
[338621599,1726805432276,-2852.462,0.00012785,2]
[338621600,1726805432285,-150.0,0.00012785,2]
[338621601,1726805432294,-1080.0,0.00012785,2]
[338621602,1726805432304,-500.0,0.00012786,2]
[338621603,1726805432314,-500.0,0.00012794,2]
[338621605,1726805432323,-529.328,0.00012798,2]
[338621607,1726805432333,-5061.88,0.00012798,2]
[338621609,1726805432343,-182.52,0.00012798,2]
[338621611,1726805432353,-1252.47968771,0.000128,2]
[338621613,1726805432365,-315.68031229,0.000128,2]
[338621615,1726805432375,-1824.0,0.000128,2]
[338621617,1726805432385,-543.40302,0.000128,2]
[338621619,1726805432394,-315.91666771,0.000128,2]
[338621621,1726805432405,-184.07333229,0.000128,2]
[338621623,1726805432414,-500.0,0.00012803,2]
[338621625,1726805432424,-500.0,0.00012808,2]
[338621627,1726805432434,-861.8643932,0.00012811,2]
[338621629,1726805432445,-500.0,0.00012812,2]
[338621631,1726805432455,-500.0,0.00012821,2]
[338621633,1726805432464,-500.0,0.0001283,2]
[338621635,1726805432474,-500.0,0.00012838,2]
[338621637,1726805432484,-500.0,0.00012847,2]
[338621639,1726805432494,-500.0,0.00012856,2]
[338621641,1726805432503,-500.0,0.00012865,2]
[338621643,1726805432513,-150.23386,0.0001287,2]
[338621645,1726805432522,-500.0,0.00012874,2]
[338621647,1726805432532,-1000.0,0.00012877,2]
[338621649,1726805432541,-1000.0,0.00012877,2]
[338621651,1726805432550,-1000.0,0.00012877,2]
[338621652,1726805432559,-1000.0,0.00012877,2]
[338621653,1726805432569,-1000.0,0.00012877,2]
[338621654,1726805432579,-392.06037896,0.00012877,2]
[338621655,1726805432589,-500.0,0.00012882,2]
[338621657,1726805432599,-500.0,0.00012896,2]
[338621659,1726805432607,-200.0,0.00012896,2]
[338621660,1726805432616,-252.2706,0.000129,2]
[338621661,1726805432626,-2063.5593,0.000129,2]
[338621662,1726805432635,-1583.3631,0.000129,2]
[338621663,1726805432645,-286.1498,0.000129,2]
[338621664,1726805432654,-8203.93,0.000129,2]
[338621665,1726805432663,-5367.3529,0.000129,2]
[338621666,1726805432673,-174.15014796,0.000129,2]
[338621667,1726805432682,-2158.6726,0.000129,2]
[338621668,1726805432691,-375.611,0.000129,2]
[338621669,1726805432703,-1924.6496,0.000129,2]
[338621670,1726805432713,-788.1964,0.000129,2]
[338621671,1726805432723,-157.3772217,0.000129,2]
[338621672,1726805432732,-1000.0,0.000129,2]
[338621673,1726805432741,-227.0,0.000129,2]
[338621674,1726805432751,-41721.85914416,0.000129,2]
[338621675,1726805432760,-359.0,0.000129,2]
[338621676,1726805432770,-193.82362893,0.000129,2]
[338621677,1726805432779,-1540.68900564,0.000129,2]
[338621678,1726805432788,-152.77667289,0.000129,2]
[338621679,1726805432798,-233.091813,0.00012938,2]
[338621680,1726805432807,-233.091813,0.00012948,2]
[338621681,1726805432816,-1101.29691295,0.0001297,2]
[338621682,1726805432826,-500.0,0.00012973,2]
[338621683,1726805432837,-500.0,0.00012973,2]
[338621684,1726805432846,-500.0,0.00012973,2]
[338621685,1726805432855,-500.0,0.00012973,2]
[338621686,1726805432864,-501.82843108,0.00012973,2]
[338621687,1726805432874,-85.59751594,0.0001299,2]
[338621688,1726805432886,-71.50248406,0.0001299,2]
[338621689,1726805432895,-561.22193258,0.0001299,2]
[338621690,1726805432904,-561.22193258,0.0001299,2]
[338621691,1726805432914,-561.22193258,0.0001299,2]
[338621692,1726805432924,-157.1,0.0001299,2]
[338621693,1726805432933,-157.1,0.0001299,2]
[338621694,1726805432942,-157.1,0.0001299,2]
[338621695,1726805432956,-157.1,0.0001299,2]
[338621696,1726805432970,-157.1,0.0001299,2]
[338621697,1726805432979,-157.1,0.0001299,2]
[338621698,1726805432988,-239.95815642,0.00012999,2]
[338621699,1726805432997,-152.45009617,0.00012999,2]
[338621700,1726805433007,-500.0,0.00012999,2]
[338621701,1726805433017,-500.0,0.00012999,2]
[338621702,1726805433027,-500.0,0.00012999,2]
[338621703,1726805433036,-500.0,0.00012999,2]
[338621704,1726805433045,-372.32636668,0.00012999,2]
[338621705,1726805433057,-176.33751938,0.00013,2]
[338621706,1726805433067,-7385.53751627,0.00013,2]
[338621707,1726805433079,-5149.76122802,0.00013,2]
[338621708,1726805433091,-1157.16,0.00013,2]
[338621709,1726805433103,-28043.27290558,0.00013,2]
[338621710,1726805433115,-13698.38536391,0.00013,2]
[338621711,1726805433127,-684.71908266,0.00013,2]
[338621712,1726805433138,-387.02289021,0.00013,2]
[338621713,1726805433150,-315.29707946,0.00013,2]
[338621714,1726805433161,-913.26386626,0.00013,2]
[338621715,1726805433172,-630.91567282,0.00013,2]
[338621716,1726805433183,-288566.67323849,0.00013,2]
[338621717,1726805433196,-270.26587227,0.00013,2]
[338621718,1726805433410,-46567.68574716,0.00013,2]
[338621719,1726805433420,-85937.53249076,0.00013,2]
[338621720,1726805433431,-17217.00000065,0.00013,2]
[338621721,1726805433442,-10826.29473191,0.00013,2]
[338621722,1726805433458,-707.07731665,0.00013,2]
[338621723,1726805433468,-629.99914214,0.00013,2]
[338621724,1726805433483,-669.94125223,0.00013,2]
[338621725,1726805433494,-57728.18810391,0.00013,2]
[338621726,1726805433505,-1225.72566514,0.00013,2]
[338621727,1726805433516,-998.55611827,0.00013,2]
[338621728,1726805433527,-463.96173615,0.00013,2]
[338621729,1726805433540,-7011.24858087,0.00013,2]
[338621738,1726805438004,-7034.90783856,0.00013,2]
[338621740,1726805438017,-518.62206885,0.00013,2]
[338621742,1726805438064,-7440.2661436,0.00013,2]
[338621743,1726805438076,-300.45999998,0.00013,2]
[338621744,1726805438087,-16670.20985491,0.00013,2]
[338621745,1726805438121,-128344.05402931,0.00013,2]
[338621746,1726805438132,-11376.91597745,0.00013,2]
[338621747,1726805438143,-1404.2,0.00013,2]
[338621748,1726805438177,-1275.15327242,0.00013,2]
[338621749,1726805438232,-1114.47748706,0.00013,2]
[338621750,1726805438287,-4888.27761967,0.00013,2]
[338621751,1726805438298,-815.0,0.00013,2]
[338621752,1726805438310,-300.0,0.00013,2]
[338621753,1726805438321,-313.999999,0.00013,2]
[338621754,1726805438342,-2730.40354718,0.00013,2]
[338621755,1726805438353,-574.65095037,0.00013,2]
[338621756,1726805438365,-2691.79912405,0.00013,2]
[338621757,1726805438397,-1849.01762945,0.00013,2]
[338621795,1726805438748,1291.525,0.00012181,2]
[338621925,1726805439986,-150.0,0.00012873,2]
[338621927,1726805439995,-56488.74678757,0.00013,2]
[338621929,1726805440007,-6315.3454475,0.00013,2]
[338621931,1726805440019,-3274.40791948,0.00013,2]
[338621940,1726805440095,-8205.23085618,0.00013,2]
[338621947,1726805440151,-27790.47092542,0.00013,2]
[338621950,1726805440162,-4853.09999989,0.00013,2]
[338621952,1726805440174,-4925.52846422,0.00013,2]
[338621954,1726805440186,-1553.87796183,0.00013,2]
[338621955,1726805440197,-2270.38307044,0.00013,2]
[338621956,1726805440211,-729.86412664,0.00013,2]
[338621957,1726805440222,-639.92034794,0.00013,2]
[338621958,1726805440233,-5966.59176036,0.00013,2]
[338621959,1726805440244,-24895.78916384,0.00013,2]
[338621960,1726805440256,-126295.73690273,0.00013,2]
[338621973,1726805440464,-653499.07836285,0.00013,2]
[338621976,1726805440475,-639.99,0.00013,2]
[338622160,1726805442289,7097.22502856,0.00012181,2]
[338622266,1726805443071,-500.0,0.00012973,2]
[338622268,1726805443081,-251.2026,0.00013,2]
[338622270,1726805443092,-434962.25317462,0.00013,2]
[338622273,1726805443104,-145593.00236195,0.00013,2]
[338622275,1726805443115,-73309.137498,0.00013,2]
[338622277,1726805443126,-13233.57645865,0.00013,2]
[338622279,1726805443137,-803.20024529,0.00013,2]
[338622281,1726805443148,-266.362806,0.00013,2]
[338622285,1726805443179,-2456.37844139,0.00013,2]
[338622286,1726805443191,-3177.3396,0.00013,2]
[338622287,1726805443201,-24896.6478099,0.00013,2]
[338622288,1726805443288,-977.39069926,0.00013,2]
[338622289,1726805443299,-927.77,0.00013,2]
[338622290,1726805443310,-13880.17189322,0.00013,2]
[338622559,1726805446258,-38183.21274438,0.00013,2]
[338622561,1726805446269,-28693.50658253,0.00013,2]
[338622564,1726805446280,-721.62621433,0.00013,2]
[338622566,1726805446291,-1455.39500522,0.00013,2]
[338622568,1726805446303,-324.95334953,0.00013,2]
[338622570,1726805446314,-2603.16398746,0.00013,2]
[338622572,1726805446325,-2121.22391962,0.00013,2]
[338622575,1726805446337,-10852.21257112,0.00013,2]
[338622731,1726805448110,-144221.02838944,0.00013,2]
[338622733,1726805448122,-18101.6106962,0.00013,2]
[338622735,1726805448133,-15015.76540038,0.00013,2]
[338622737,1726805448144,-538.71923606,0.00013,2]
[338622739,1726805448155,-867.38434103,0.00013,2]
[338622742,1726805448166,-6488.44889042,0.00013,2]
[338622744,1726805448177,-5337.63867122,0.00013,2]
[338622746,1726805448187,-11848.88091365,0.00013,2]
[338622748,1726805448198,-12918.06001583,0.00013,2]
[338622750,1726805448211,-404.48230813,0.00013,2]
[338622752,1726805448222,-6084.5,0.00013,2]
[338622754,1726805448233,-1804.85418586,0.00013,2]
[338622757,1726805448250,-1861.594756,0.00013,2]
[338622807,1726805455939,500.0,0.00022999,120]
[338622808,1726805456201,500.0,0.00022999,120]
[338622809,1726805456632,500.0,0.00022999,120]
[338622810,1726805456737,500.0,0.00022999,120]
[338622811,1726805457015,500.0,0.00022999,120]
[338622812,1726805457305,500.0,0.00022999,120]
[338622813,1726805457576,500.0,0.00022999,120]
[338622814,1726805458152,500.0,0.00022999,120]
[338622815,1726805458420,500.0,0.00022999,120]
[338622816,1726805458727,500.0,0.00022999,120]
[338622817,1726805459026,500.0,0.00022999,120]
[338622818,1726805459284,500.0,0.00022999,120]
[338622819,1726805459553,500.0,0.00022999,120]
[338622820,1726805459857,500.0,0.00022999,120]
[338622821,1726805460124,500.0,0.00022999,120]
[338622822,1726805460396,500.0,0.00022999,120]
[338622823,1726805460643,500.0,0.00022999,120]
[338622824,1726805460918,500.0,0.00022999,120]
[338622825,1726805461194,500.0,0.00022999,120]
[338622826,1726805461509,505.88927127,0.00022999,120]
[338622827,1726805463643,-2430.0,0.00013,10]
[338622828,1726805467349,150.0,0.00022986,120]
[338622829,1726805470368,500.0,0.00022999,120]
[338622830,1726805478314,500.0,0.00011164,2]
[338622831,1726805483907,186.14,0.00012015,2]
[338622832,1726805484113,186.14,0.00012035,2]
[338622833,1726805484344,186.14,0.00012055,2]
[338622834,1726805484565,186.14,0.00012075,2]
[338622835,1726805484797,500.0,0.00011164,2]
[338622836,1726805497753,1500.0,0.00012737,2]
[338622837,1726805497952,150.0,0.00012726,2]
[338622838,1726805554404,500.0,0.00022999,120]
[338622839,1726805554655,500.0,0.00022999,120]
[338622840,1726805554939,500.0,0.00022999,120]
[338622841,1726805555188,500.0,0.00022999,120]
[338622842,1726805555455,500.0,0.00022999,120]
[338622843,1726805555731,393.9724423,0.00022999,120]
[338622844,1726805564818,486.05209429,0.00022999,120]
[338622845,1726805572451,257.19116778,0.00022999,120]
[338622846,1726805596799,500.0,0.00022999,120]
[338622847,1726805597056,500.0,0.00022999,120]
[338622848,1726805597322,500.0,0.00022999,120]
[338622849,1726805597582,632.06,0.00022999,120]
[338622850,1726805629084,303.674962,0.00015,30]
[338622851,1726805630896,617.89787802,0.00022999,120]
[338622852,1726805633284,158.93,0.00011931,2]
[338622853,1726805637493,16663.18,0.00011931,2]
[338622854,1726805704996,11835.0,0.00022999,120]
[338622855,1726805741753,737.6,0.00011919,2]
[338622856,1726805753721,500.0,0.00022999,120]
[338622857,1726805753962,500.0,0.00022999,120]
[338622858,1726805754220,500.0,0.00022999,120]
[338622859,1726805754696,501.00336533,0.00022999,120]
[338622860,1726805758507,500.0,0.00022999,120]
[338622861,1726805758776,500.0,0.00022999,120]
[338622862,1726805759056,500.0,0.00022999,120]
[338622863,1726805759316,500.0,0.00022999,120]
[338622864,1726805759613,500.0,0.00022999,120]
[338622865,1726805759643,288.63,0.00011919,2]
[338622866,1726805759891,500.0,0.00022999,120]
[338622867,1726805760150,500.0,0.00022999,120]
[338622868,1726805760449,500.0,0.00022999,120]
[338622869,1726805760704,500.0,0.00022999,120]
[338622870,1726805760980,500.0,0.00022999,120]
[338622871,1726805761267,500.0,0.00022999,120]
[338622872,1726805761538,500.0,0.00022999,120]
[338622873,1726805761826,500.0,0.00022999,120]
[338622874,1726805762093,500.0,0.00022999,120]
[338622875,1726805762343,500.0,0.00022999,120]
[338622876,1726805762605,500.0,0.00022999,120]
[338622877,1726805762853,500.0,0.00022999,120]
[338622878,1726805763480,500.0,0.00022999,120]
[338622879,1726805764098,500.0,0.00022999,120]
[338622880,1726805764367,500.0,0.00022999,120]
[338622881,1726805764628,500.0,0.00022999,120]
[338622882,1726805764885,500.0,0.00022999,120]
[338622883,1726805765286,500.0,0.00022999,120]
[338622884,1726805765556,266.88846034,0.00022999,120]
[338622885,1726805770270,358.26,0.00011891,2]
[338622886,1726805822230,175.2,9.534e-05,2]
[338622887,1726805833681,345.04168563,0.00012703,2]
[338622888,1726805861314,250.0,0.00011917,2]
[338622889,1726805870932,250.0,0.00011917,2]
[338622890,1726805881895,300.0,0.00012742,2]
[338622891,1726805904062,169.90180674,0.00012703,2]
[338622892,1726805909305,-169.90180674,0.00012742,2]
[338622893,1726805921809,1050.0,0.00011,2]
[338622894,1726805931966,158.57,9.942e-05,2]
[338622895,1726805932007,9991.8232,0.000127,2]
[338622896,1726805932196,158.57,0.00012206,2]
[338622897,1726805941383,300.0,0.00012742,2]
[338622898,1726806001464,300.0,0.00012742,2]
[338622899,1726806042295,150.0,0.00022986,120]
[338622900,1726806043134,4956.4489856,0.000127,2]
[338622901,1726806048128,4956.44898555,0.00012722,2]
[338622902,1726806061931,300.0,0.00012742,2]
[338622903,1726806068219,162.4233,0.000127,2]